bitfinex/quotes_SOLUSD_20251202
["timestamp","ask_amount","ask_price","bid_price","bid_amount"]
[1764665016032,55.53248782,126.42,126.41,1e-08]
[1764665018702,8.80994492,126.41,126.4,1e-08]
[1764665018923,22.07173452,126.41,126.4,1e-08]
[1764665019136,22.07173452,126.41,126.39,1e-08]
[1764665019438,8.80994492,126.39,126.38,0.1]
[1764665019744,8.9,126.4,126.38,0.76]
[1764665019903,2.59670762,126.39,126.38,0.76]
[1764665020111,16.308864,126.39,126.38,0.76]
[1764665021134,35.62753489,126.39,126.38,0.76]
[1764665023826,33.03082727,126.39,126.38,0.76]
[1764665024340,16.308864,126.39,126.38,0.76]
[1764665029041,7.91159913,126.4,126.38,3.35670762]
[1764665029340,25.208864,126.42,126.38,70.67230996]
[1764665029341,35.71605005,126.42,126.38,70.67230996]
[1764665029512,16.308864,126.4,126.39,0.68]
[1764665032537,26.81696402,126.4,126.39,0.68]
[1764665032728,24.2202564,126.4,126.39,0.68]
[1764665032936,16.308864,126.4,126.39,0.68]
[1764665033645,8.80994492,126.43,126.39,65.27670762]
[1764665033943,8.80994492,126.43,126.4,2.59670762]
[1764665034146,8.80994492,126.43,126.4,0.68]
[1764665034439,8.80994492,126.43,126.41,0.68]
[1764665035344,7.90955759,126.43,126.41,0.68]
[1764665038447,16.308864,126.44,126.41,3.27670762]
[1764665038650,8.88,126.46,126.43,2.59670762]
[1764665038854,19.31399606,126.47,126.44,0.68]
[1764665039224,11.40665254,126.47,126.44,0.68]
[1764665039544,8.80994492,126.47,126.44,0.68]
[1764665040056,16.71698419,126.47,126.44,0.68]
[1764665041938,7.90703927,126.47,126.44,8.5888247]
[1764665042235,7.90703927,126.47,126.45,0.68]
[1764665042842,4.05734342,126.46,126.45,0.68]
[1764665043040,11.96438269,126.47,126.45,0.68]
[1764665043349,24.21555225,126.48,126.45,0.68]
[1764665043545,28.27289567,126.48,126.45,0.68]
[1764665044347,4.05734342,126.46,126.43,0.68]
[1764665044558,20.36620742,126.45,126.44,0.68]
[1764665044783,16.308864,126.45,126.44,0.68]
[1764665045048,20.36620742,126.45,126.44,0.68]
[1764665048551,16.308864,126.45,126.44,0.68]
[1764665053961,16.308864,126.45,126.43,62.0]
[1764665054259,16.308864,126.45,126.44,0.7]
[1764665056563,16.308864,126.45,126.44,62.7]
[1764665058256,7.90768081,126.46,126.44,62.7]
[1764665058450,7.90768081,126.46,126.45,0.7]
[1764665059958,24.21615976,126.47,126.45,0.7]
[1764665062245,24.21615976,126.47,126.45,62.7]
[1764665062446,24.21615976,126.47,126.46,0.7]
[1764665064363,36.48110515,126.49,126.46,0.7]
[1764665064662,40.53844857,126.49,126.46,0.7]
[1764665066165,4.05734342,126.48,126.46,0.7]
[1764665066983,22.30728834,126.47,126.43,8.60890894]
[1764665067143,8.80994492,126.43,126.39,0.7]
[1764665067463,25.11880892,126.39,126.38,0.1]
[1764665067656,37.99615234,126.39,126.38,0.1]
[1764665067962,58.2584697,126.39,126.38,0.1]
[1764665068943,43.15985719,126.39,126.38,0.1]
[1764665069263,37.70817069,126.39,126.38,0.1]
[1764665080177,33.03082727,126.39,126.38,0.1]
[1764665080477,45.90817069,126.39,126.38,0.1]
[1764665080780,46.52817069,126.39,126.38,0.1]
[1764665081655,45.90817069,126.39,126.38,0.1]
[1764665081861,46.52817069,126.39,126.38,0.1]
[1764665083976,45.90817069,126.39,126.38,0.1]
[1764665084864,46.52817069,126.39,126.38,0.1]
[1764665090584,12.86728834,126.38,126.37,0.1]
[1764665090790,13.48728834,126.38,126.37,0.1]
[1764665091364,21.39993274,126.38,126.37,0.1]
[1764665092568,16.308864,126.35,126.34,0.69]
[1764665092773,25.11880892,126.34,126.32,0.79]
[1764665092969,4.05734342,126.33,126.32,0.79]
[1764665093290,16.308864,126.33,126.32,0.79]
[1764665095170,37.09036615,126.36,126.32,0.79]
[1764665095374,4.05734342,126.35,126.32,0.79]
[1764665095882,4.05734342,126.34,126.32,0.79]
[1764665097790,11.97278353,126.34,126.32,0.79]
[1764665097999,11.97278353,126.34,126.32,62.79]
[1764665098380,11.97278353,126.34,126.33,0.69]
[1764665098772,20.36620742,126.36,126.33,0.69]
[1764665099092,16.308864,126.36,126.33,0.69]
[1764665099393,24.22281503,126.36,126.33,0.69]
[1764665100899,28.28015845,126.36,126.33,0.69]
[1764665101997,28.28015845,126.36,126.33,8.60525753]
[1764665101998,20.36620742,126.36,126.33,8.60525753]
[1764665102177,12.85734342,126.39,126.35,4.05734342]
[1764665102377,2.60152697,126.37,126.34,0.69]
[1764665103394,10.51492375,126.37,126.34,0.69]
[1764665104278,16.308864,126.4,126.36,2.60152697]
[1764665104480,11.41147189,126.39,126.35,2.60152697]
[1764665104686,2.60152697,126.38,126.35,0.69]
[1764665105006,2.60152697,126.38,126.36,0.69]
[1764665105378,10.51420494,126.38,126.36,0.69]
[1764665106173,7.91267797,126.38,126.36,0.69]
[1764665107805,10.51420494,126.38,126.36,0.69]
[1764665109811,10.51420494,126.38,126.36,62.69]
[1764665110710,10.51420494,126.38,126.37,0.69]
[1764665111707,11.41147189,126.39,126.37,0.69]
[1764665111911,2.60152697,126.38,126.37,0.69]
[1764665112520,8.80994492,126.37,126.34,0.69]
[1764665112700,2.60152697,126.35,126.33,0.69]
[1764665114110,7.9138968,126.36,126.33,0.69]
[1764665114311,2.60152697,126.36,126.33,8.60574342]
[1764665114696,7.9135624,126.37,126.34,0.69]
[1764665114888,2.60152697,126.36,126.34,0.69]
[1764665116018,2.60152697,126.45,126.35,13.98305394]
[1764665116191,16.308864,126.43,126.39,2.60152697]
[1764665116709,16.308864,126.43,126.4,0.69]
[1764665116899,8.80994492,126.44,126.4,3.29152697]
[1764665117312,8.80994492,126.44,126.41,0.69]
[1764665117887,7.90951514,126.43,126.41,0.69]
[1764665121916,24.2175034,126.45,126.42,2.60152697]
[1764665122116,39.08758535,126.47,126.43,2.60152697]
[1764665122320,39.08758535,126.47,126.43,3.29152697]
[1764665122624,36.48605838,126.47,126.44,0.69]
[1764665123527,36.48605838,126.47,126.44,3.29152697]
[1764665123815,7.90752607,126.47,126.45,2.60152697]
[1764665124122,7.90752607,126.47,126.45,3.29152697]
[1764665124319,7.90752607,126.47,126.46,0.69]
[1764665124526,7.90752607,126.47,126.44,10.51033374]
[1764665124828,7.90752607,126.47,126.46,0.69]
[1764665125504,7.90752607,126.47,126.45,0.69]
[1764665126801,16.308864,126.48,126.45,11.19973704]
[1764665127130,16.308864,126.48,126.46,2.60152697]
[1764665127350,16.308864,126.48,126.47,0.69]
[1764665129120,19.31647279,126.51,126.47,3.29152697]
[1764665129425,19.31647279,126.51,126.48,0.69]
[1764665129917,16.71494582,126.51,126.48,0.69]
[1764665130124,27.01454539,126.52,126.48,3.29152697]
[1764665130308,16.308864,126.5,126.49,0.69]
[1764665132613,35.62547422,126.5,126.47,0.71]
[1764665132812,2.60152697,126.49,126.48,0.71]
[1764665133727,10.50729027,126.49,126.48,0.71]
[1764665134935,2.60152697,126.49,126.48,0.71]
[1764665135136,10.50729027,126.49,126.48,0.71]
[1764665135434,2.60152697,126.49,126.48,0.71]
[1764665135616,25.11880892,126.5,126.48,0.71]
[1764665135931,16.308864,126.5,126.48,0.71]
[1764665136137,16.308864,126.5,126.48,11.21774781]
[1764665136514,16.308864,126.5,126.49,0.71]
[1764665138816,16.91383879,126.52,126.49,3.31152697]
[1764665139235,16.91383879,126.52,126.5,0.71]
[1764665139438,11.41147189,126.51,126.49,62.0]
[1764665139735,8.80994492,126.51,126.49,62.0]
[1764665140030,2.60152697,126.5,126.49,62.0]
[1764665140425,19.31661022,126.5,126.49,62.0]
[1764665142517,19.31661022,126.5,126.48,0.71]
[1764665143041,16.71508325,126.5,126.48,0.71]
[1764665143940,16.71508325,126.5,126.46,72.50909254]
[1764665144243,10.50625486,126.51,126.47,2.60152697]
[1764665144630,10.50625486,126.51,126.47,10.508069]
[1764665144838,28.27558072,126.52,126.48,2.60152697]
[1764665145140,25.67405375,126.52,126.48,2.60152697]
[1764665145327,16.91405375,126.52,126.48,11.36152697]
[1764665145842,16.91405375,126.52,126.48,19.26739326]
[1764665146553,19.51558072,126.52,126.48,19.26739326]
[1764665147046,16.91405375,126.52,126.48,19.26739326]
[1764665147250,0.2,126.52,126.48,81.26739326]
[1764665148044,0.2,126.52,126.48,39.03336416]
[1764665148250,0.2,126.52,126.49,2.60152697]
[1764665148643,0.2,126.52,126.5,2.60152697]
[1764665148840,0.2,126.52,126.51,11.36152697]
[1764665149046,0.2,126.52,126.51,19.26604044]
[1764665151647,0.2,126.52,126.48,49.93804968]
[1764665151648,0.2,126.52,126.48,19.76572109]
[1764665151852,0.2,126.52,126.49,19.26729027]
[1764665154335,0.2,126.52,126.5,2.60152697]
[1764665155851,0.2,126.52,126.5,10.50651524]
[1764665157393,0.2,126.52,126.5,2.60152697]
[1764665157868,0.2,126.52,126.5,10.50664253]
[1764665158855,0.2,126.52,126.5,8.76]
[1764665159068,0.2,126.52,126.5,11.36152697]
[1764665159437,0.2,126.52,126.51,2.60152697]
[1764665160254,0.2,126.52,126.5,8.76]
[1764665161053,0.2,126.52,126.5,19.26662833]
[1764665161445,0.2,126.52,126.51,2.60152697]
[1764665162470,0.2,126.52,126.5,16.66510136]
[1764665163148,0.2,126.52,126.5,19.26662833]
[1764665164362,0.2,126.52,126.5,20.71900216]
[1764665164892,0.2,126.52,126.51,4.0539008]
[1764665165564,0.2,126.52,126.51,66.0539008]
[1764665167562,0.2,126.52,126.51,73.95841427]
[1764665168363,0.2,126.55,126.52,61.8]
[1764665168537,0.2,126.55,126.54,4.0539008]
[1764665168735,0.2,126.55,126.54,65.8539008]
[1764665169167,0.2,126.55,126.54,69.9078016]
[1764665169540,0.2,126.55,126.54,77.81044108]
[1764665170149,0.2,126.55,126.54,73.75654028]
[1764665170860,0.2,126.55,126.54,77.81044108]
[1764665173343,0.2,126.56,126.54,98.27703978]
[1764665173559,0.2,126.56,126.55,13.5239008]
[1764665173743,0.2,126.56,126.55,75.3239008]
[1764665174955,0.2,126.56,126.55,83.22591581]
[1764665175153,0.2,126.56,126.55,79.17201501]
[1764665175471,0.2,126.56,126.55,83.22591581]
[1764665176176,1e-08,126.56,126.55,99.53477981]
[1764665178977,0.2,126.58,126.57,4.0539008]
[1764665179158,0.2,126.58,126.57,12.8139008]
[1764665179359,0.2,126.58,126.57,13.5239008]
[1764665180178,0.2,126.58,126.57,75.3239008]
[1764665180567,0.2,126.58,126.57,83.22466717]
[1764665182063,0.2,126.58,126.57,21.42466717]
[1764665182671,0.2,126.58,126.57,8.61076637]
[1764665182876,0.2,126.58,126.57,21.42466717]
[1764665184366,0.2,126.58,126.57,7.90076637]
[1764665184566,0.2,126.58,126.57,20.71466717]
[1764665187194,0.2,126.58,126.57,16.66076637]
[1764665187395,0.2,126.58,126.57,20.71466717]
[1764665188278,0.2,126.58,126.57,21.42466717]
[1764665188472,0.2,126.58,126.57,83.42466717]
[1764665190096,0.2,126.63,126.58,0.71]
[1764665190390,0.2,126.63,126.62,4.0539008]
[1764665190596,0.2,126.63,126.62,20.7115473]
[1764665191301,0.08,126.65,126.62,20.7115473]
[1764665191484,0.08,126.65,126.63,4.0539008]
[1764665192593,0.08,126.65,126.63,11.95080665]
[1764665192900,16.508864,126.66,126.63,11.95080665]
[1764665193398,16.728864,126.66,126.63,11.95080665]
[1764665194192,8.31527999,126.66,126.63,11.95080665]
[1764665194928,0.2,126.66,126.64,12.8139008]
[1764665195080,0.2,126.66,126.65,4.0539008]
[1764665196893,0.2,126.66,126.65,11.94967655]
[1764665197090,0.2,126.66,126.65,12.60967655]
[1764665197295,0.2,126.66,126.65,12.8139008]
[1764665197505,0.2,126.66,126.65,17.5278016]
[1764665197884,0.2,126.66,126.62,27.64176275]
[1764665198206,0.2,126.66,126.64,4.0539008]
[1764665198388,0.2,126.66,126.65,8.74]
[1764665198705,0.2,126.66,126.65,12.7939008]
[1764665198876,0.2,126.66,126.65,8.74]
[1764665201704,0.2,126.66,126.65,12.7939008]
[1764665201880,0.2,126.66,126.65,8.74]
[1764665205400,12.3692268,126.66,126.6,8.56889415]
[1764665205579,12.3692268,126.66,126.62,12.7939008]
[1764665205786,8.315326,126.66,126.62,12.7939008]
[1764665206004,0.22,126.65,126.62,13.4639008]
[1764665206193,8.315326,126.66,126.62,13.4639008]
[1764665207193,8.315326,126.66,126.63,4.0539008]
[1764665207395,0.2,126.66,126.63,4.0539008]
[1764665207590,0.42,126.66,126.63,4.7239008]
[1764665208112,0.2,126.66,126.63,4.7239008]
[1764665208402,0.2,126.66,126.65,4.0539008]
[1764665209009,0.2,126.66,126.64,13.4639008]
[1764665209207,0.2,126.66,126.64,16.63601001]
[1764665209385,0.2,126.66,126.65,4.0539008]
[1764665209807,0.2,126.66,126.64,17.30601001]
[1764665210007,0.42,126.66,126.63,20.69062021]
[1764665210384,0.42,126.66,126.63,21.36062021]
[1764665211198,0.2,126.66,126.59,19.74802903]
[1764665211406,0.22,126.65,126.61,4.0539008]
[1764665211805,0.22,126.65,126.62,4.7239008]
[1764665212133,0.22,126.65,126.62,13.4639008]
[1764665213322,0.22,126.65,126.62,21.36128227]
[1764665213625,8.31544918,126.66,126.62,21.36128227]
[1764665213821,0.22,126.65,126.59,28.31831344]
[1764665214028,0.22,126.65,126.61,4.0539008]
[1764665214966,0.22,126.65,126.62,11.9515473]
[1764665215110,8.11585923,126.65,126.62,11.9515473]
[1764665215529,8.11585923,126.65,126.62,4.0539008]
[1764665216739,7.89585923,126.65,126.63,4.0539008]
[1764665217097,7.89585923,126.65,126.62,12.6215341]
[1764665217528,8.11585923,126.65,126.62,12.6215341]
[1764665218725,7.89585923,126.65,126.62,12.6215341]
[1764665218926,8.11585923,126.65,126.62,11.9515341]
[1764665219403,7.89585923,126.65,126.62,12.6215341]
[1764665219604,0.2,126.66,126.63,0.67]
[1764665219812,0.2,126.66,126.63,4.7239008]
[1764665220323,0.2,126.66,126.65,4.0539008]
[1764665220722,0.2,126.66,126.65,12.61967655]
[1764665221327,0.2,126.66,126.65,8.56577575]
[1764665221650,0.2,126.66,126.65,12.61967655]
[1764665222932,0.2,126.66,126.65,21.35967655]
[1764665223150,0.2,126.66,126.65,17.30577575]
[1764665223339,0.2,126.66,126.65,21.35967655]
[1764665224435,0.2,126.66,126.65,25.41357735]
[1764665224638,0.2,126.68,126.66,25.0866656]
[1764665224840,0.2,126.68,126.67,4.0539008]
[1764665225144,0.2,126.68,126.67,4.7239008]
[1764665225328,0.2,126.68,126.67,66.7239008]
[1764665226260,0.2,126.68,126.67,12.61842989]
[1764665226458,0.2,126.68,126.67,11.15001276]
[1764665226850,0.2,126.69,126.67,8.56452909]
[1764665227051,0.2,126.69,126.68,11.99548367]
[1764665228145,0.2,126.69,126.68,19.88938957]
[1764665230072,0.2,126.73,126.68,39.62415433]
[1764665230244,0.2,126.73,126.7,2.58548367]
[1764665230444,0.2,126.73,126.7,11.32548367]
[1764665230644,0.2,126.73,126.7,11.99548367]
[1764665231148,0.2,126.73,126.7,0.67]
[1764665231339,0.2,126.73,126.7,11.99548367]
[1764665232564,0.2,126.73,126.7,81.88814349]
[1764665236548,0.2,126.73,126.7,78.63265982]
[1764665236753,0.62,126.72,126.7,78.63265982]
[1764665237365,0.82,126.71,126.68,2.58548367]
[1764665237539,0.62,126.7,126.67,70.74]
[1764665237741,0.62,126.7,126.67,81.21983352]
[1764665237966,0.62,126.7,126.67,62.0]
[1764665238168,2.58548367,126.68,126.59,1.99999999]
[1764665238370,2.58548367,126.68,126.63,3.25548367]
[1764665238579,3.20548367,126.69,126.65,7.89577575]
[1764665238744,0.62,126.68,126.65,7.89577575]
[1764665238943,0.62,126.68,126.65,16.63577575]
[1764665239346,12.01542859,126.7,126.66,0.67]
[1764665239569,0.62,126.69,126.65,30.89069881]
[1764665239746,0.62,126.69,126.66,8.74]
[1764665240444,0.62,126.69,126.67,7.89452909]
[1764665241266,0.62,126.7,126.67,7.89452909]
[1764665242083,2.58548367,126.69,126.66,16.63493006]
[1764665242461,3.20548367,126.68,126.63,22.99734374]
[1764665242649,3.20548367,126.68,126.64,8.74]
[1764665242849,0.62,126.67,126.64,8.74]
[1764665243380,0.62,126.67,126.64,79.30639924]
[1764665243582,0.62,126.67,126.64,78.63639924]
[1764665243944,0.62,126.67,126.64,79.30639924]
[1764665244664,0.62,126.67,126.64,78.63639924]
[1764665244863,0.62,126.67,126.64,81.22188291]
[1764665245068,0.62,126.67,126.64,81.89188291]
[1764665246697,0.62,126.67,126.64,78.63639924]
[1764665246855,0.62,126.67,126.64,16.63639924]
[1764665247059,3.20548367,126.67,126.64,16.63639924]
[1764665247356,0.62,126.67,126.64,16.63639924]
[1764665247670,0.62,126.66,126.64,16.63639924]
[1764665249689,11.10063881,126.66,126.63,62.0]
[1764665249866,11.10063881,126.66,126.63,70.74]
[1764665250069,0.62,126.65,126.63,70.74]
[1764665250476,26.7889513,126.67,126.63,70.74]
[1764665250814,0.62,126.66,126.63,70.74]
[1764665250954,3.20548367,126.66,126.63,70.74]
[1764665251152,11.10100036,126.66,126.63,70.74]
[1764665251383,0.62,126.65,126.63,62.0]
[1764665251594,0.62,126.65,126.63,69.89695999]
[1764665252094,0.62,126.65,126.63,62.0]
[1764665253676,11.10148081,126.65,126.63,62.0]
[1764665253882,2.58548367,126.64,126.63,62.0]
[1764665254060,3.20548367,126.64,126.61,70.74]
[1764665254265,0.62,126.63,126.61,70.74]
[1764665254475,25.11880892,126.67,126.62,11.15313017]
[1764665254686,25.73880892,126.67,126.63,11.32548367]
[1764665254861,0.62,126.66,126.63,11.32548367]
[1764665255882,8.5155529,126.66,126.63,8.74]
[1764665258871,0.62,126.65,126.63,8.74]
[1764665259884,0.62,126.65,126.62,62.0]
[1764665260194,3.20548367,126.65,126.62,70.74]
[1764665260359,7.89639924,126.64,126.62,70.74]
[1764665260893,8.51639924,126.64,126.62,70.74]
[1764665261669,7.89639924,126.64,126.62,70.74]
[1764665262373,7.89639924,126.64,126.62,71.44]
[1764665266469,8.51608018,126.65,126.62,71.44]
[1764665267289,7.89608018,126.65,126.63,0.7]
[1764665267491,8.51608018,126.65,126.62,70.74]
[1764665267787,8.51608018,126.65,126.62,71.44]
[1764665269670,0.62,126.64,126.62,70.74]
[1764665269871,10.48156385,126.65,126.62,70.74]
[1764665270174,11.10156385,126.65,126.62,71.44]
[1764665272001,8.51608018,126.65,126.62,71.44]
[1764665272190,11.10156385,126.65,126.62,71.44]
[1764665272579,11.10156385,126.65,126.62,70.74]
[1764665272784,0.62,126.64,126.62,70.74]
[1764665272989,10.48156385,126.65,126.62,70.74]
[1764665273183,11.10156385,126.65,126.62,71.44]
[1764665275193,8.51608018,126.65,126.62,71.44]
[1764665275396,7.89608018,126.65,126.62,71.44]
[1764665275700,7.89608018,126.65,126.62,79.33761033]
[1764665275995,7.89608018,126.65,126.62,70.59761033]
[1764665276199,8.51608018,126.65,126.62,62.7]
[1764665276501,11.10156385,126.65,126.62,62.7]
[1764665278993,10.48156385,126.65,126.62,62.7]
[1764665280101,10.48156385,126.65,126.62,70.59764119]
[1764665280998,11.10089448,126.66,126.63,0.7]
[1764665281797,2.58548367,126.64,126.6,7.89851181]
[1764665282106,2.58548367,126.61,126.59,0.7]
[1764665283278,2.58548367,126.61,126.59,8.59931088]
[1764665283478,2.58548367,126.62,126.59,8.59931088]
[1764665283696,2.58548367,126.61,126.59,7.89931088]
[1764665284076,2.58548367,126.61,126.59,0.7]
[1764665285386,3.20548367,126.61,126.58,17.3398614]
[1764665286091,2.58548367,126.61,126.59,0.7]
[1764665286292,10.48355437,126.62,126.59,0.7]
[1764665286500,12.56715057,126.62,126.59,0.7]
[1764665287091,8.5180707,126.62,126.59,0.7]
[1764665287293,12.56715057,126.62,126.59,0.7]
[1764665287800,7.8980707,126.62,126.59,8.59935923]
[1764665288128,24.53559717,126.66,126.61,4.04907987]
[1764665288290,16.6398614,126.66,126.64,4.04907987]
[1764665288483,28.58413718,126.66,126.62,12.78907987]
[1764665288680,13.47902479,126.65,126.61,0.7]
[1764665288982,12.85902479,126.65,126.61,0.7]
[1764665289214,8.80994492,126.65,126.61,4.74907987]
[1764665289816,16.70619708,126.65,126.61,12.64711919]
[1764665290033,16.70619708,126.65,126.62,0.7]
[1764665290231,21.37527695,126.65,126.62,0.7]
[1764665290393,4.04907987,126.63,126.59,9.44]
[1764665290589,4.04907987,126.62,126.59,0.7]
[1764665291918,11.94700297,126.62,126.59,0.7]
[1764665292212,4.04907987,126.6,126.57,9.45]
[1764665292785,12.85902479,126.61,126.58,0.71]
[1764665292990,19.7540038,126.64,126.6,4.04907987]
[1764665293202,36.0628678,126.64,126.61,4.04907987]
[1764665293417,16.308864,126.64,126.62,0.71]
[1764665294614,16.308864,126.64,126.62,12.65667603]
[1764665294794,16.308864,126.64,126.63,0.71]
[1764665295603,8.51532452,126.66,126.63,0.71]
[1764665297303,12.56440439,126.66,126.63,0.71]
[1764665298723,8.51532452,126.66,126.63,0.71]
[1764665299627,37.68263562,126.67,126.63,12.65588209]
[1764665300105,16.308864,126.65,126.64,0.71]
[1764665301410,16.308864,126.65,126.62,12.65658771]
[1764665302037,16.308864,126.65,126.63,0.71]
[1764665302236,16.308864,126.65,126.63,4.75907987]
[1764665303204,16.928864,126.65,126.62,11.94658771]
[1764665303409,16.308864,126.65,126.63,0.71]
[1764665305753,16.308864,126.65,126.63,4.75907987]
[1764665306036,16.308864,126.65,126.63,0.71]
[1764665306337,16.308864,126.65,126.63,4.75907987]
[1764665306525,7.89564739,126.66,126.64,4.75907987]
[1764665306722,7.89564739,126.66,126.65,4.04907987]
[1764665307044,7.89564739,126.66,126.65,0.71]
[1764665307337,16.70475667,126.67,126.65,0.71]
[1764665308117,16.70475667,126.67,126.64,4.75907987]
[1764665308454,16.70475667,126.67,126.65,0.71]
[1764665308910,16.70475667,126.67,126.64,4.04907987]
[1764665309116,16.70475667,126.67,126.65,0.71]
[1764665310045,16.70475667,126.67,126.65,4.75907987]
[1764665310542,16.308864,126.68,126.65,11.94471158]
[1764665310842,16.308864,126.68,126.65,0.71]
[1764665311020,24.82314486,126.68,126.65,0.71]
[1764665311744,24.20314486,126.68,126.64,11.94542499]
[1764665312043,28.87222473,126.68,126.65,0.71]
[1764665312242,24.82314486,126.68,126.65,0.71]
[1764665312847,8.80994492,126.64,126.61,0.71]
[1764665313046,21.59902479,126.65,126.61,4.75907987]
[1764665313542,22.21902479,126.65,126.62,0.71]
[1764665313919,22.21902479,126.65,126.61,4.75907987]
[1764665314314,7.89639924,126.64,126.61,4.75907987]
[1764665314947,7.89639924,126.64,126.61,0.71]
[1764665316548,7.89639924,126.64,126.61,4.75907987]
[1764665316724,7.89639924,126.64,126.61,0.71]
[1764665317046,13.47902479,126.63,126.59,4.73907987]
[1764665317219,13.47902479,126.63,126.59,0.69]
[1764665317416,0.62,126.62,126.59,0.69]
[1764665317746,0.62,126.62,126.59,4.73907987]
[1764665318040,8.80994492,126.61,126.57,11.94959567]
[1764665318242,8.80994492,126.61,126.58,0.69]
[1764665318544,16.70847561,126.61,126.58,4.73907987]
[1764665320046,16.70847561,126.61,126.58,0.69]
[1764665320446,16.70847561,126.61,126.58,4.73907987]
[1764665321518,7.89853069,126.61,126.59,0.7]
[1764665322525,4.66907987,126.66,126.6,4.04907987]
[1764665322728,0.62,126.65,126.62,4.04907987]
[1764665322917,4.66907987,126.65,126.61,4.04907987]
[1764665323726,0.62,126.64,126.61,12.6470937]
[1764665325332,0.62,126.64,126.61,8.59801383]
[1764665326048,17.25622116,126.65,126.61,11.9470937]
[1764665326349,17.25622116,126.65,126.62,0.7]
[1764665327038,16.63622116,126.65,126.62,4.74907987]
[1764665327240,16.63622116,126.65,126.63,0.7]
[1764665327457,16.63622116,126.65,126.6,7.89889415]
[1764665327760,16.63622116,126.65,126.62,4.74907987]
[1764665328052,17.25622116,126.65,126.62,4.74907987]
[1764665328450,16.63622116,126.65,126.62,4.74907987]
[1764665328752,16.63622116,126.65,126.63,0.7]
[1764665329054,16.63622116,126.65,126.63,62.7]
[1764665329458,7.89622116,126.65,126.63,62.7]
[1764665330255,7.89622116,126.65,126.63,62.0]
[1764665330455,8.51622116,126.65,126.63,62.0]
[1764665330753,7.89622116,126.65,126.63,62.0]
[1764665330933,7.89622116,126.65,126.63,62.7]
[1764665331833,8.51622116,126.65,126.63,62.0]
[1764665332255,7.89622116,126.65,126.63,62.0]
[1764665332441,7.89622116,126.65,126.63,62.7]
[1764665334840,13.47902479,126.64,126.59,4.74907987]
[1764665335040,4.04907987,126.63,126.59,4.04907987]
[1764665335246,12.78907987,126.63,126.6,0.7]
[1764665336560,13.40907987,126.63,126.6,0.7]
[1764665336852,21.30663893,126.63,126.6,0.7]
[1764665338164,12.85902479,126.62,126.59,0.7]
[1764665339159,7.89827027,126.61,126.59,0.7]
[1764665339652,20.75697825,126.62,126.59,0.7]
[1764665343363,8.80994492,126.6,126.58,0.7]
[1764665343740,16.70936292,126.6,126.58,0.7]
[1764665347966,7.89857601,126.61,126.58,0.7]
[1764665350357,10.4903721,126.61,126.58,0.7]
[1764665351846,7.89857601,126.61,126.58,0.7]
[1764665352242,2.59179609,126.62,126.58,11.19177944]
[1764665352446,8.80994492,126.62,126.58,11.19177944]
[1764665352646,8.80994492,126.62,126.59,0.72]
[1764665353345,16.70765065,126.62,126.59,62.72]
[1764665353677,19.91944674,126.62,126.59,62.72]
[1764665354975,2.59179609,126.61,126.59,62.72]
[1764665355472,19.91944674,126.62,126.59,62.72]
[1764665361385,16.70765065,126.62,126.59,62.0]
[1764665361678,19.29944674,126.62,126.59,62.72]
[1764665362570,19.91944674,126.62,126.59,62.72]
[1764665362973,16.70765065,126.62,126.6,0.72]
[1764665363278,19.29944674,126.62,126.6,0.72]
[1764665363851,19.91944674,126.62,126.59,62.72]
[1764665364787,8.80994492,126.61,126.59,62.72]
[1764665364961,12.02174101,126.61,126.59,62.0]
[1764665365160,2.59179609,126.6,126.58,62.72]
[1764665366190,20.76174101,126.61,126.58,62.72]
[1764665366357,7.89889415,126.6,126.58,62.72]